Workbook

Sheet miou
B1: graph of μ versusx | I1: ="μ " & "for K = "&L3 -> μ for K = 3
G2: change k
L3: 3
A4: X | B4: k=5 | C4: k=1 | D4: k=49 | E4: ="K ="&L3 -> K =3 | F4: ="U/B for "&B4 -> U/B for k=5 | G4: ="U for "&C4 -> U for k=1 | H4: U for k=49 | I4: U for K =3
A5: 0.01 | B5: =MIEWU(A5,B,k) -> 0.02144186798 | C5: =MIEWU(A5,B,1) -> 0.01437954256 | D5: =MIEWU(A5,B,49) -> 0.0243447193 | E5: =MIEWU(A5,B,$L$3) -> 0.0197436039 | F5: =2*$A5/B5/B -> 0.2949628888 | G5: =2*$A5/C5/B -> 0.4398300778 | H5: =2*$A5/D5/B -> 0.2597916716 | I5: =2*$A5/E5/B -> 0.3203343905
A6: 0.1 | B6: 0.1371675849 | C6: 0.09742150041 | D6: 0.1526334659 | E6: 0.1278980432 | F6: 0.4610823558 | G6: 0.6491950231 | H6: 0.4143622949 | I6: 0.4944997721
A7: =A6+0.1 -> 0.2 | B7: 0.227868979 | C7: 0.1668467529 | D7: 0.2507752465 | E7: 0.2139196929 | F7: 0.5551045473 | G7: 0.7581274687 | H7: 0.5044002873 | I7: 0.5913018323
A8: 0.3 | B8: 0.301115759 | C8: 0.225600916 | D8: 0.3286253717 | E8: 0.284140888 | F8: 0.6301120216 | G8: 0.8410278778 | H8: 0.5773646102 | I8: 0.6677555664
A9: 0.4 | B9: 0.3631186372 | C9: 0.2773456533 | D9: 0.3935392658 | E9: 0.3441271268 | F9: 0.6966930003 | G9: 0.9121549583 | H9: 0.6428385546 | I9: 0.7351417344
A10: 0.5 | B10: 0.4168561207 | C10: 0.3238151733 | D10: 0.4490527962 | E10: 0.3965415744 | F10: 0.7586017101 | G10: 0.9765687099 | H10: 0.70421066 | I10: 0.7974643428
A11: 0.6 | B11: 0.4641038932 | C11: 0.3660316824 | D11: 0.4972744334 | E11: 0.442969837 | F11: 0.8176473517 | G11: 1.036722605 | H11: 0.7631064333 | I11: 0.8566572428
A12: 0.7 | B12: 0.5060515469 | C12: 0.4046741295 | D12: 0.5396139184 | E12: 0.4844739888 | F12: 0.874849361 | G12: 1.094013282 | H12: 0.8204363478 | I12: 0.9138135022
A13: 0.8 | B13: 0.5435570693 | C13: 0.4402299615 | D13: 0.5770838662 | E13: 0.5218208717 | F13: 0.9308395643 | G13: 1.149318469 | H13: 0.87676065 | I13: 0.969613239
A14: 0.9 | B14: 0.5772715479 | C14: 0.4730691737 | D14: 0.6104481318 | E14: 0.5555937535 | F14: 0.9860350487 | G14: 1.203227795 | H14: 0.9324460985 | I14: 1.024507521
A15: 1 | B15: 0.6077076109 | C15: 0.5034846827 | D15: 0.6403036132 | E15: 0.5862534513 | F15: 1.040723402 | G15: 1.256156451 | H15: 0.9877431878 | I15: 1.078809055
A16: 1.1 | B16: 0.6352801806 | C16: 0.5317161328 | D16: 0.6671292136 | E16: 0.6141746099 | F16: 1.095109066 | G16: 1.308406953 | H16: 1.042828092 | I16: 1.132741527
A17: 1.2 | B17: 0.6603322941 | C17: 0.5579647727 | D17: 0.6913170349 | E17: 0.6396685983 | F17: 1.149340484 | G17: 1.360205295 | H17: 1.097827191 | I17: 1.186468494
A18: =A17+0.1 -> 1.3 | B18: 0.6831522931 | C18: 0.5824031803 | D18: 0.7131932579 | E18: 0.6629986852 | F18: 1.203526944 | G18: 1.411723389 | H18: 1.152832255 | I18: 1.240111346 | L18: dieretis | M18: =(k-1)^2-deltax^2 -> -1460
A19: 1.4 | B19: 0.7039857415 | C19: 0.6051818525 | D19: 0.7330326926 | E19: 0.6843905107 | F19: 1.257749543 | G19: 1.463093682 | H19: 1.207910307 | I19: 1.29376099 | L19: gamat | M19: =SQRT(1-GAMA^2) -> 0.1561737619 | N19: Kapag | O19: =cel(GAMAT,1,1,1) -> 3.256934318
A20: 1.5 | B20: 0.7230439757 | C20: 0.6264338048 | D20: 0.7510692626 | E20: 0.7040395636 | F20: 1.312068602 | G20: 1.514419067 | H20: 1.263110269 | I20: 1.347485776 | L20: DELTAx | M20: =(k+1)*SQRT(1+(B/x)^2) -> 38.41874542 | N20: Pielliptic | O20: =cel(GAMAT,LAMDA+1,1,1) -> 61.26072434
A21: 1.6 | B21: 0.7405104233 | C21: 0.6462778667 | D21: 0.7675037767 | E21: 0.7221166824 | F21: 1.366528842 | G21: 1.565779835 | H21: 1.318467585 | I21: 1.401337036 | L21: GAMA | M21: =B/x/SQRT(1+(B/x)^2) -> 0.9877295966 | N21: (1+γ²/λ) | O21: =(1+GAMA^2/LAMDA) -> 0.0108401084
A22: 1.7 | B22: 0.7565453922 | C22: 0.6648210976 | D22: 0.7825098304 | E22: 0.7387722087 | F22: 1.421163113 | G22: 1.617238695 | H22: 1.374007537 | I22: 1.455353073 | L22: LAMDA | M22: =(deltax*GAMA)^2/((k-1)^2-deltax^2) -> -0.9863013699 | N22: Π(λ,γ)(1+γ²/λ) | O22: =pIELLIPTIC*O21 -> 0.6640728926
A23: 1.8 | B23: 0.771289784 | C23: 0.682160597 | D23: 0.7962383817 | E23: 0.7541391984 | F23: 1.475995121 | G23: 1.668844496 | H23: 1.429747653 | I23: 1.509562108 | L23: AMEROS | M23: =k/(k-1)/SQRT(1+LAMDA) -> 10.68000468 | N23: γ²/λ | O23: =GAMA^2/LAMDA -> -0.9891598916
A24: 1.9 | B24: 0.7848680307 | C24: 0.69838489 | D24: 0.8088213632 | E24: 0.7683359566 | F24: 1.531041479 | G24: 1.720635037 | H24: 1.48569952 | I24: 1.563984479 | N24: γ²/λ | O24: =O23*kapag -> -3.221628797
A25: 2 | B25: 0.797390457 | C25: 0.7135750094 | D25: 0.8203745784 | E25: 0.7814680758 | F25: 1.586313271 | G25: 1.772639242 | H25: 1.541870138 | I25: 1.618634341 | N25: μ2 | O25: =2*k*(k-1)/diereti/SQRT(1+LAMDA) -> -0.2340822944
A26: 2.1 | B26: 0.8089552099 | C26: 0.7278053598 | D26: 0.8310000556 | E26: 0.7936301026 | F26: 1.641817249 | G26: 1.824878863 | H26: 1.59826297 | I26: 1.673520968 | O26: =4*k*deltax/diereti -> -0.5262841839
A27: 2.2 | B27: 0.8196498566 | C27: 0.741144421 | D27: 0.8407879839 | E27: 0.8049069205 | F27: 1.697556779 | G27: 1.877369823 | H27: 1.654878753 | I27: 1.728649779 | N27: μ1 | O27: =O26*(O21*pIELLIPTIC-O23*kapag)/PI() -> -0.6509384151
A28: 2.3 | B28: 0.8295527219 | C28: 0.7536553313 | D28: 0.8498183211 | E28: 0.8153749118 | F28: 1.753532579 | G28: 1.930123311 | H28: 1.711716125 | I28: 1.784023156 | N28: μ=μ2-μ1 | O28: =O25-O27 -> 0.4168561207
A29: 2.4 | B29: 0.8387340196 | C29: 0.7653963831 | D29: 0.8581621418 | E29: 0.8251029449 | F29: 1.809743305 | G29: 1.983146655 | H29: 1.768772127 | I29: 1.839641085
A30: 2.5 | B30: 0.8472568171 | C30: 0.7764214477 | D30: 0.8658827761 | E30: 0.8341532207 | F30: 1.866186023 | G30: 2.036444041 | H30: 1.826042594 | I30: 1.895501679
A31: 2.6 | B31: 0.8551778645 | C31: 0.7867803477 | D31: 0.8730367773 | E31: 0.842582005 | F31: 1.922856579 | G31: 2.090017103 | H31: 1.883522465 | I31: 1.951601593
A32: =A31+0.1 -> 2.7 | B32: 0.8625483111 | C32: 0.7965191872 | D32: 0.8796747507 | E32: 0.8504402648 | F32: 1.979749904 | G32: 2.143865413 | H32: 1.941206037 | I32: 2.007936368
A33: 2.8 | B33: 0.8694143283 | C33: 0.8056806463 | D33: 0.8858420645 | E33: 0.8577742271 | F33: 2.036860254 | G33: 2.197986879 | H33: 1.999087152 | I33: 2.064500697
A34: 2.9 | B34: 0.8758176534 | C34: 0.814304249 | D34: 0.8915794656 | E34: 0.8646258688 | F34: 2.094181404 | G34: 2.252378082 | H34: 2.05715936 | I34: 2.121288651
A35: 3 | B35: 0.8817960663 | C35: 0.8224266052 | D35: 0.8969236115 | E35: 0.8710333498 | F35: 2.151706805 | G35: 2.307034554 | H35: 2.115416042 | I35: 2.178293858
A36: 3.1 | B36: 0.8873838084 | C36: 0.8300816333 | D36: 0.9019075347 | E36: 0.8770313978 | F36: 2.209429709 | G36: 2.361951007 | H36: 2.173850504 | I36: 2.235509646
A37: 3.2 | B37: =MIEWU(A37,B,k) -> 0.8926119526 | C37: =MIEWU(A37,B,1) -> 0.8373007643 | D37: =MIEWU(A37,B,49) -> 0.9065610473 | E37: =MIEWU(A37,B,$L$3) -> 0.8826516483 | F37: =2*$A37/B37/B -> 2.267343269 | G37: =2*$A37/C37/B -> 2.417121528 | H37: =2*$A37/D37/B -> 2.232456059 | I37: =2*$A37/E37/B -> 2.29292916
A38: 3.3 | B38: 0.8975087299 | C38: 0.84411313 | D38: 0.9109110945 | E38: 0.8879229492 | F38: 2.325440618 | G38: 2.472539736 | H38: 2.291226079 | I38: 2.350545458
A39: 3.4 | B39: 0.9020998191 | C39: 0.8505457362 | D39: 0.9149820662 | E39: 0.8928716315 | F39: 2.383714932 | G39: 2.528198917 | H39: 2.35015405 | I39: 2.408351585
A40: 3.5 | B40: 0.9064086041 | C40: 0.8566236231 | D40: 0.9187960697 | E40: 0.8975217518 | F40: 2.442159476 | G40: 2.584092129 | H40: 2.409233599 | I40: 2.466340629
A41: 3.6 | B41: 0.9104564024 | C41: 0.8623700142 | D41: 0.9223731705 | E41: 0.9018953095 | F41: 2.500767647 | G41: 2.640212296 | H41: 2.468458524 | I41: 2.524505773
A42: 3.7 | B42: 0.9142626686 | C42: 0.8678064526 | D42: 0.9257316054 | E42: 0.9060124411 | F42: 2.559532997 | G42: 2.69655228 | H42: 2.527822811 | I42: 2.582840326
A43: =A42+0.1 -> 3.8 | B43: 0.9178451769 | C43: 0.8729529286 | D43: 0.92888797 | E43: 0.9098915947 | F43: 2.618449257 | G43: 2.753104942 | H43: 2.587320645 | I43: 2.641337755
A44: 3.9 | B44: 0.9212201824 | C44: 0.877827997 | D44: 0.9318573859 | E44: 0.9135496873 | F44: 2.677510352 | G44: 2.809863189 | H44: 2.646946424 | I44: 2.699991702
A45: 4 | B45: 0.9244025672 | C45: 0.8824488856 | D45: 0.9346536484 | E45: 0.9170022458 | F45: 2.736710409 | G45: 2.866820016 | H45: 2.706694755 | I45: 2.758796001
A46: 4.1 | B46: 0.9274059699 | C46: 0.8868315956 | D46: 0.9372893583 | E46: 0.9202635335 | F46: 2.796043767 | G46: 2.923968535 | H46: 2.766560463 | I46: 2.817744686
A47: 4.2 | B47: 0.9302429022 | C47: 0.8909909943 | D47: 0.9397760386 | E47: 0.9233466654 | F47: 2.855504974 | G47: 2.981302001 | H47: 2.826538585 | I47: 2.876832001
A48: 4.3 | B48: 0.9329248536 | C48: 0.8949409011 | D48: 0.9421242393 | E48: 0.9262637106 | F48: 2.915088796 | G48: 3.03881383 | H48: 2.886624369 | I48: 2.936052397
A49: 4.4 | B49: 0.9354623851 | C49: 0.8986941665 | D49: 0.9443436301 | E49: 0.9290257859 | F49: 2.974790206 | G49: 3.096497613 | H49: 2.94681327 | I49: 2.99540054
A50: 4.5 | B50: 0.9378652141 | C50: 0.9022627448 | D50: 0.9464430845 | E50: 0.9316431399 | F50: 3.034604388 | G50: 3.154347124 | H50: 3.007100945 | I50: 3.054871304
A51: 4.6 | B51: 0.9401422901 | C51: 0.9056577623 | D51: 0.9484307537 | E51: 0.9341252289 | F51: 3.094526731 | G51: 3.212356332 | H51: 3.067483247 | I51: 3.114459772
A52: 4.7 | B52: 0.9423018632 | C52: 0.9088895787 | D52: 0.9503141335 | E52: 0.9364807855 | F52: 3.154552821 | G52: 3.270519401 | H52: 3.127956215 | I52: 3.174161229
A53: 4.8 | B53: 0.9443515462 | C53: 0.911967845 | D53: 0.9521001248 | E53: 0.9387178812 | F53: 3.214678438 | G53: 3.328830693 | H53: 3.188516076 | I53: 3.233971159
A54: 4.9 | B54: 0.94629837 | C54: 0.9149015563 | D54: 0.9537950868 | E54: 0.9408439827 | F54: 3.274899551 | G54: 3.387284769 | H54: 3.249159227 | I54: 3.293885239
A55: 5 | B55: 0.9481488342 | C55: 0.9176991005 | D55: 0.9554048861 | E55: 0.9428660029 | F55: 3.335212306 | G55: 3.445876386 | H55: 3.309882236 | I55: 3.353899335
A56: 5.1 | B56: 0.9499089529 | C56: 0.9203683033 | D56: 0.9569349396 | E56: 0.9447903473 | F56: 3.395613025 | G56: 3.504600497 | H56: 3.37068183 | I56: 3.414009492
A57: 5.2 | B57: 0.9515842954 | C57: 0.9229164698 | D57: 0.9583902546 | E57: 0.9466229565 | F57: 3.456098196 | G57: 3.563452245 | H57: 3.431554892 | I57: 3.474211928
A58: 5.3 | B58: 0.953180024 | C58: 0.9253504227 | D58: 0.9597754639 | E58: 0.9483693438 | F58: 3.516664466 | G58: 3.622426961 | H58: 3.49249845 | I58: 3.534503031
A59: 5.4 | B59: 0.954700928 | C59: 0.9276765375 | D59: 0.9610948579 | E59: 0.9500346306 | F59: 3.577308634 | G59: 3.681520158 | H59: 3.553509672 | I59: 3.594879348
A60: 5.5 | B60: 0.9561514542 | C60: 0.929900775 | D60: 0.9623524134 | E60: 0.9516235779 | F60: 3.638027648 | G60: 3.740727527 | H60: 3.61458586 | I60: 3.65533758
A61: 5.6 | B61: 0.9575357347 | C61: 0.9320287116 | D61: 0.9635518206 | E61: 0.9531406151 | F61: 3.698818593 | G61: 3.800044929 | H61: 3.675724443 | I61: 3.715874576
A62: 5.7 | B62: 0.9588576129 | C62: 0.9340655666 | D62: 0.964696506 | E62: 0.9545898663 | F62: 3.759678688 | G62: 3.859468394 | H62: 3.73692297 | I62: 3.776487327
A63: 5.8 | B63: 0.9601206662 | C63: 0.9360162279 | D63: 0.9657896545 | E63: 0.9559751744 | F63: 3.820605279 | G63: 3.918994112 | H63: 3.798179105 | I63: 3.837172956
A64: 5.9 | B64: 0.9613282272 | C64: 0.9378852756 | D64: 0.9668342291 | E64: 0.9573001229 | F64: 3.881595831 | G64: 3.978618426 | H64: 3.859490621 | I64: 3.897928716
A65: 6 | B65: 0.9624834027 | C65: 0.9396770036 | D65: 0.9678329884 | E65: 0.958568056 | F65: 3.942647927 | G65: 4.038337831 | H65: 3.920855393 | I65: 3.958751983
A66: 6.1 | B66: 0.9635890917 | C66: 0.9413954399 | D66: 0.968788503 | E66: 0.9597820966 | F66: 4.003759257 | G66: 4.098148962 | H66: 3.982271397 | I66: 4.019640248
A67: 6.2 | B67: 0.964648001 | C67: 0.9430443652 | D67: 0.9697031703 | E67: 0.9609451637 | F67: 4.064927616 | G67: 4.158048596 | H67: 4.043736701 | I67: 4.080591117
A68: 6.3 | B68: 0.96566266 | C68: 0.9446273297 | D68: 0.970579228 | E68: 0.962059987 | F68: 4.126150898 | G68: 4.218033638 | H68: 4.10524946 | I68: 4.141602297
A69: 6.4 | B69: =MIEWU(A69,B,k) -> 0.9666354342 | C69: =MIEWU(A69,B,1) -> 0.9461476693 | D69: =MIEWU(A69,B,49) -> 0.9714187661 | E69: =MIEWU(A69,B,$L$3) -> 0.9631291212 | F69: =2*$A69/B69/B -> 4.187427092 | G69: =2*$A69/C69/B -> 4.278101122 | H69: =2*$A69/D69/B -> 4.166807917 | I69: =2*$A69/E69/B -> 4.2026716
A70: 6.5 | B70: 0.967568537 | C70: 0.94760852 | D70: 0.9722237387 | E70: 0.9641549593 | F70: 4.248754275 | G70: 4.338248202 | H70: 4.22841039 | I70: 4.263796933
A71: 6.6 | B71: 0.9684640415 | C71: 0.9490128318 | D71: 0.9729959737 | E71: 0.9651397438 | F71: 4.310130611 | G71: 4.398472151 | H71: 4.290055277 | I71: 4.324976293
A72: =A71+0.1 -> 6.7 | B72: 0.9693238906 | C72: 0.9503633808 | D72: 0.9737371826 | E72: 0.9660855777 | F72: 4.371554344 | G72: 4.45877035 | H72: 4.351741045 | I72: 4.386207767
A73: 6.8 | B73: 0.9701499062 | C73: 0.9516627814 | D73: 0.9744489689 | E73: 0.966994435 | F73: 4.433023794 | G73: 4.51914029 | H73: 4.413466231 | I73: 4.447489522
A74: 6.9 | B74: 0.9709437981 | C74: 0.9529134964 | D74: 0.975132836 | E74: 0.9678681692 | F74: 4.494537356 | G74: 4.57957956 | H74: 4.475229435 | I74: 4.508819806
A75: 7 | B75: 0.9717071721 | C75: 0.9541178476 | D75: 0.9757901945 | E75: 0.968708522 | F75: 4.556093493 | G75: 4.64008585 | H75: 4.537029322 | I75: 4.570196941
A76: 7.1 | B76: 0.9724415372 | C76: 0.9552780246 | D76: 0.976422369 | E76: 0.9695171313 | F76: 4.617690736 | G76: 4.700656942 | H76: 4.59886461 | I76: 4.631619321
A77: 7.2 | B77: 0.9731483122 | C77: 0.9563960936 | D77: 0.9770306038 | E77: 0.9702955381 | F77: 4.679327677 | G77: 4.761290705 | H77: 4.660734078 | I77: 4.693085408
A78: 7.3 | B78: 0.9738288322 | C78: 0.9574740052 | D78: 0.977616069 | E78: 0.9710451931 | F78: 4.741002968 | G78: 4.821985097 | H78: 4.722636555 | I78: 4.754593727
A79: 7.4 | B79: 0.9744843542 | C79: 0.9585136022 | D79: 0.9781798653 | E79: 0.9717674632 | F79: 4.80271532 | G79: 4.882738154 | H79: 4.784570919 | I79: 4.816142868
A80: 7.5 | B80: 0.9751160625 | C80: 0.9595166259 | D80: 0.978723029 | E80: 0.9724636367 | F80: 4.864463496 | G80: 4.943547993 | H80: 4.846536098 | I80: 4.877731476
A81: 7.6 | B81: 0.9757250735 | C81: 0.9604847229 | D81: 0.9792465362 | E81: 0.9731349286 | F81: 4.926246311 | G81: 5.004412802 | H81: 4.908531065 | I81: 4.939358256
A82: 7.7 | B82: 0.9763124401 | C82: 0.9614194508 | D82: 0.9797513072 | E82: 0.9737824857 | F82: 4.988062629 | G82: 5.065330842 | H82: 4.970554834 | I82: 5.001021962
A83: 7.8 | B83: 0.9768791562 | C83: 0.9623222839 | D83: 0.9802382098 | E83: 0.9744073907 | F83: 5.049911362 | G83: 5.126300443 | H83: 5.032606463 | I83: 5.062721401
A84: 7.9 | B84: 0.9774261604 | C84: 0.9631946182 | D84: 0.9807080631 | E84: 0.9750106666 | F84: 5.111791464 | G84: 5.187319996 | H84: 5.094685045 | I84: 5.124455428
A85: 8 | B85: 0.9779543393 | C85: 0.9640377763 | D85: 0.9811616405 | E85: 0.9755932805 | F85: 5.173701933 | G85: 5.248387958 | H85: 5.156789715 | I85: 5.186222945
A86: 8.1 | B86: 0.9784645315 | C86: 0.9648530116 | D86: 0.9815996729 | E86: 0.9761561471 | F86: 5.235641808 | G86: 5.309502844 | H86: 5.218919638 | I86: 5.248022896
A87: 8.2 | B87: 0.97895753 | C87: 0.965641513 | D87: 0.982022851 | E87: 0.9767001319 | F87: 5.297610165 | G87: 5.370663225 | H87: 5.281074017 | I87: 5.309854267
A88: 8.3 | B88: 0.9794340854 | C88: 0.9664044081 | D88: 0.9824318286 | E88: 0.9772260545 | F88: 5.359606117 | G88: 5.431867727 | H88: 5.343252084 | I88: 5.371716085
A89: 8.4 | B89: 0.9798949085 | C89: 0.9671427673 | D89: 0.9828272241 | E89: 0.9777346913 | F89: 5.421628812 | G89: 5.493115028 | H89: 5.405453104 | I89: 5.433607416
A90: 8.5 | B90: 0.9803406727 | C90: 0.967857607 | D90: 0.9832096232 | E90: 0.9782267781 | F90: 5.483677432 | G90: 5.554403854 | H90: 5.467676368 | I90: 5.495527359
A91: 8.6 | B91: 0.9807720164 | C91: 0.9685498927 | D91: 0.983579581 | E91: 0.9787030127 | F91: 5.545751188 | G91: 5.61573298 | H91: 5.529921199 | I91: 5.557475051
A92: 8.7 | B92: 0.981189545 | C92: 0.969220542 | D92: 0.9839376235 | E92: 0.9791640573 | F92: 5.607849326 | G92: 5.677101227 | H92: 5.592186941 | I92: 5.61944966
A93: 8.8 | B93: 0.9815938331 | C93: 0.9698704276 | D93: 0.9842842497 | E93: 0.9796105402 | F93: 5.669971117 | G93: 5.738507458 | H93: 5.654472967 | I93: 5.681450386
A94: 8.9 | B94: 0.981985426 | C94: 0.9705003794 | D94: 0.984619933 | E94: 0.9800430583 | F94: 5.732115861 | G94: 5.799950577 | H94: 5.716778674 | I94: 5.74347646
A95: 9 | B95: 0.9823648417 | C95: 0.9711111871 | D95: 0.984945123 | E95: 0.9804621785 | F95: 5.794282884 | G95: 5.861429529 | H95: 5.779103481 | I95: 5.805527141
A96: 9.1 | B96: 0.9827325726 | C96: 0.9717036027 | D96: 0.9852602466 | E96: 0.9808684399 | F96: 5.856471538 | G96: 5.922943298 | H96: 5.841446827 | I96: 5.867601716
A97: 9.2 | B97: 0.9830890867 | C97: 0.9722783423 | D97: 0.9855657097 | E97: 0.9812623551 | F97: 5.918681199 | G97: 5.984490903 | H97: 5.903808176 | I97: 5.929699498

Sheet GAGB
B1: COMPLEX((k-1)*J14+(k+1)*M14;0) | G1: G A (iy) = - 2 K ( x + i y ) / D | K1: (1-4X K ( x + i y ) / D | M1: (1-4KX/D)^2+16k^2*Y^2/D^)
G2: G B (iy) = 2 K ( x - i y ) / D | K2: 1-4X K ( x - i y ) / D | M2: D | V2: GB(iy)-GA(iy) = 2K(x-iy)+2K(x+iy)/D=4Kx/D
A3: x | B3: ="X"&"_"&B4 -> X_1 | C3: ="X"&"_"&C4 -> X_1,5 | D3: ="X"&"_"&D4 -> X_2 | E3: X_2,5 | F3: X_3 | G3: X_3,5 | H3: X_4 | I3: X_4,5 | J3: X_5 | K3: X_5,5 | L3: X_6 | M3: X_6,5 | N3: X_7 | O3: X_7,5 | P3: X_8 | Q3: X_8,5
A4: 0.5 | B4: =x+0.5 -> 1 | C4: =B4+0.5 -> 1.5 | D4: =C4+0.5 -> 2 | E4: 2.5 | F4: 3 | G4: 3.5 | H4: 4 | I4: 4.5 | J4: 5 | K4: 5.5 | L4: 6 | M4: 6.5 | N4: 7 | O4: 7.5 | P4: 8 | Q4: 8.5
M6: V | N6: 0.1 | O6: B | P6: =2*k*SQRT(V) -> 3.16227766
G7: COMPLEX | K7: (1+2xGa)(1-2xGb) | O7: k | P7: 5
F8: =0 -> 0 | G8: =COMPLEX(0,F8) -> 0 | H8: =COMPLEX(0,SQRT(N13^2+x^2)) -> 0,5i
B9: =SUM(B13:B770)*0.1 -> 0 | F9: =0.1 -> 0.1 | G9: =COMPLEX(0,F9) -> 0,1i | H9: U=x*2/mew | I9: U/B | L9: =SUM(L13:L770)*0.1 -> 0 | P9: =0.1 -> 0.1 | Q9: =COMPLEX(0,P9) -> 0,1i | R9: U=x*2/mew | S9: U/B | V9: =SUM(V13:V770)*0.1 -> 0 | Z9: =0.1 -> 0.1 | AA9: =COMPLEX(0,Z9) -> 0,1i | AB9: U=x*2/mew | AC9: U/B | AF9: =SUM(AF13:AF770)*0.1 -> 0 | AJ9: =0.1 -> 0.1 | AK9: =COMPLEX(0,AJ9) -> 0,1i | AL9: U=x*2/mew | AM9: U/B | AP9: =SUM(AP13:AP770)*0.1 -> 0 | AT9: =0.1 -> 0.1 | AU9: =COMPLEX(0,AT9) -> 0,1i | AV9: U=x*2/mew | AW9: U/B | AZ9: =SUM(AZ13:AZ770)*0.1 -> 0 | BD9: =0.1 -> 0.1 | BE9: =COMPLEX(0,BD9) -> 0,1i | BF9: U=x*2/mew | BG9: U/B | BJ9: =SUM(BJ13:BJ770)*0.1 -> 0 | BN9: =0.1 -> 0.1 | BO9: =COMPLEX(0,BN9) -> 0,1i | BP9: U=x*2/mew | BQ9: U/B | BT9: =SUM(BT13:BT770)*0.1 -> 0 | BX9: =0.1 -> 0.1 | BY9: =COMPLEX(0,BX9) -> 0,1i | BZ9: U=x*2/mew | CA9: U/B | CD9: =SUM(CD13:CD770)*0.1 -> 0 | CH9: =0.1 -> 0.1 | CI9: =COMPLEX(0,CH9) -> 0,1i | CJ9: U=x*2/mew | CK9: U/B | CN9: =SUM(CN13:CN770)*0.1 -> 0 | CR9: =0.1 -> 0.1 | CS9: =COMPLEX(0,CR9) -> 0,1i | CT9: U=x*2/mew | CU9: U/B
C10: mew | D10: =MIEWU(x,B,k) -> 0.4168561207 | F10: imx=2x | H10: =x*2/D10 -> 2.398909241 | I10: =H10/B -> 0.7586017101 | M10: mew | N10: =MIEWU(X_1,B,k) -> 0.6077076109 | P10: imx=2x | R10: =X_1*2/N10 -> 3.291056363 | S10: =R10/B -> 1.040723402 | W10: mew | X10: =MIEWU(X_1_5,B,k) -> 0.7230439757 | Z10: imx=2x | AB10: =X_1_5*2/X10 -> 4.149125227 | AC10: =AB10/B -> 1.312068602 | AG10: mew | AH10: =MIEWU(X_2,B,k) -> 0.797390457 | AJ10: imx=2x | AL10: =X_2*2/AH10 -> 5.016363019 | AM10: =AL10/B -> 1.586313271 | AQ10: mew | AR10: =MIEWU(X_2_5,B,k) -> 0.8472568171 | AT10: imx=2x | AV10: =X_2_5*2/AR10 -> 5.90139837 | AW10: =AV10/B -> 1.866186023 | BA10: mew | BB10: =MIEWU(X_3,B,k) -> 0.8817960663 | BD10: imx=2x | BF10: =X_3*2/BB10 -> 6.804294359 | BG10: =BF10/B -> 2.151706805 | BK10: mew | BL10: =MIEWU(X_3_5,B,k) -> 0.9064086041 | BN10: imx=2x | BP10: =X_3_5*2/BL10 -> 7.722786355 | BQ10: =BP10/B -> 2.442159476 | BU10: mew | BV10: =MIEWU(X_4,B,k) -> 0.9244025672 | BX10: imx=2x | BZ10: =X_4*2/BV10 -> 8.65423819 | CA10: =BZ10/B -> 2.736710409 | CE10: mew | CF10: =MIEWU(X_4_5,B,k) -> 0.9378652141 | CH10: imx=2x | CJ10: =X_4_5*2/CF10 -> 9.596261664 | CK10: =CJ10/B -> 3.034604388 | CO10: mew | CP10: =MIEWU(X_4_5,B,k) -> 0.9378652141 | CR10: imx=2x | CT10: =X_4_5*2/CP10 -> 9.596261664 | CU10: =CT10/B -> 3.034604388
D11: =COMPLEX(1,0) -> 1 | F11: =COMPLEX(2*x,0) -> 1 | N11: =COMPLEX(1,0) -> 1 | P11: =COMPLEX(2*X_1,0) -> 2 | X11: =COMPLEX(1,0) -> 1 | Z11: =COMPLEX(2*X_1_5,0) -> 3 | AH11: =COMPLEX(1,0) -> 1 | AJ11: =COMPLEX(2*X_2,0) -> 4 | AR11: =COMPLEX(1,0) -> 1 | AT11: =COMPLEX(2*X_2_5,0) -> 5 | BB11: =COMPLEX(1,0) -> 1 | BD11: =COMPLEX(2*X_3,0) -> 6 | BL11: =COMPLEX(1,0) -> 1 | BN11: =COMPLEX(2*X_3_5,0) -> 7 | BV11: =COMPLEX(1,0) -> 1 | BX11: =COMPLEX(2*X_4,0) -> 8 | CF11: =COMPLEX(1,0) -> 1 | CH11: =COMPLEX(2*X_4_5,0) -> 9 | CP11: =COMPLEX(1,0) -> 1 | CR11: =COMPLEX(2*X_5,0) -> 10
